[Event "GER-ch Youth-U16 2022"]
[Site "Willingen"]
[Date "2022.06.05"]
[Round "1.6"]
[White "Hommer, Jeremy"]
[Black "Rempe, Jonas"]
[Result "1-0"]
[ECO "A48"]
[WhiteElo "2152"]
[BlackElo "1856"]
[Annotator "TA"]
[PlyCount "93"]
[EventDate "2022.06.05"]
[EventType "swiss"]
[EventRounds "9"]
[EventCountry "GER"]
[SourceTitle "playchess.com"]
[Source "ChessBase"]
[SourceQuality "1"]
[TimeControl "40/4500+30:900+30"]

{[%evp 18,93,40,12,61,64,55,25,68,47,65,60,54,58,59,53,112,103,118,122,144,148,142,143,145,139,147,114,131,95,102,90,90,87,89,89,134,129,177,169,171,179,169,166,187,168,360,368,445,334,835,813,1229,1191,1112,1109,1727,1594,2818,2439,3010,2510,2570,2609,2963,5034,29987,29988,29988,29988,29986,29976,29990,29989,29990,29991,29993,29991]} 1. d4 {[%emt 0:00:00]} Nf6 {[%emt 0:00:00]} 2. Nf3 {[%emt 0:00:00]} g6 {[%emt 0:00:00]} 3. Nbd2 {[%emt 0:00:00]} Bg7 {[%emt 0:00:00]} 4. e4 {[%emt 0:00:00]} d6 {[%emt 0:00:00]} 5. Bd3 {[%emt 0:00:00]} O-O {[%emt 0:00:00]} 6. O-O {[%emt 0:00:00]} Nbd7 {[%emt 0:00:00]} 7. c3 {[%emt 0:00:00]} e5 {[%emt 0:00:00]} 8. Re1 {[%emt 0:00:00]} c6 {[%emt 0:01:02]} 9. a4 {[%emt 0:00:00]} Qc7 {[%emt 0:00:19]} 10. h3 {[%emt 0:00:00]} h6 {[%emt 0:16:21] B07: Pirc Defence: Miscellaneous Systems.} (10... Re8 $11) 11. a5 $14 {[%emt 0:00:00] [#]} Re8 $146 {[%emt 0:05:45]} ({Predecessor:} 11... g5 12. Nf1 Rd8 13. Ng3 Nf8 14. Nf5 Ng6 15. Qc2 Bxf5 16. exf5 Nf4 17. dxe5 Nxd3 18. Qxd3 dxe5 {1-0 (40) Arat,U (2385)-Bozkurt,A (1755) Izmir 2018}) 12. dxe5 {[%emt 0:12:34]} dxe5 {[%emt 0:12:03] White has an edge.} 13. b4 {[%emt 0:00:41]} Nf8 {[%emt 0:04:45]} 14. Bf1 {[%emt 0:06:24]} Be6 {[%emt 0:04:24]} 15. Nc4 {[%emt 0:04:05]} Rad8 {[%emt 0:01:55]} 16. Qc2 {[%emt 0:00:31]} N6h7 {[%emt 0:00:27]} ({Better is} 16... N8d7 $14) 17. Be3 $16 {[%emt 0:01:07]} Bxc4 {[%emt 0:04:26]} 18. Bxc4 {[%emt 0:00:27]} b5 {[%emt 0:01:01]} 19. axb6 {[%emt 0:01:32]} axb6 {[%emt 0:00:06]} 20. Ra6 {[%emt 0:00:44]} Rb8 {[%emt 0:08:39]} 21. Rea1 {[%emt 0:07:00] Strongly threatening Ra7. White is much more active. The black rooks are badly placed.} Ne6 {[%emt 0:03:59]} 22. Qa2 {[%emt 0:07:40]} Nhf8 {[%emt 0:00:35]} 23. Nd2 {[%emt 0:07:03]} b5 {[%emt 0:04:52]} 24. Ra7 {[%emt 0:02:26]} Rb7 {[%emt 0:00:32] And now ...Rxa7 would win.} 25. Bf1 {[%emt 0:01:11]} Reb8 {[%emt 0:02:33]} 26. Nb3 {[%emt 0:02:36]} Nd7 {[%emt 0:01:33]} 27. Ra6 {[%emt 0:17:26]} c5 {[%emt 0:01:55]} (27... Qc8 $16 28. g3 Nf6) 28. bxc5 {[%emt 0:00:28]} Ndxc5 {[%emt 0:00:46]} 29. Nxc5 {[%emt 0:00:18]} Nxc5 {[%emt 0:00:57]} 30. Rxg6 {[%emt 0:01:19]} Kh7 {[%emt 0:01:02]} 31. Rg4 {[%emt 0:00:52]} Na4 $2 {[%emt 0:04:16]} (31... Ne6 {keeps fighting.} 32. Rg3 Bf6) 32. c4 $18 {[%emt 0:03:47]} Nc3 {[%emt 0:01:50]} 33. Qb3 {[%emt 0:03:20]} f5 $2 {[%emt 0:03:37]} (33... b4 34. Ra6 Qd7) 34. exf5 {[%emt 0:05:14]} (34. Qxc3 fxg4 35. hxg4 bxc4 $11) 34... e4 {[%emt 0:00:01]} 35. f6 {[%emt 0:00:38]} Bxf6 {[%emt 0:00:24]} 36. Ra6 {[%emt 0:00:26]} Qe7 {[%emt 0:01:21] [#]} 37. Qxc3 $3 {[%emt 0:00:57][%mdl 512]} Rb6 {[%emt 0:01:47] [#]} (37... Rf8 38. Qc2) 38. Rxb6 $1 {[%emt 0:00:29]} Rxb6 {[%emt 0:00:01]} 39. Qc2 {[%emt 0:00:44]} ({Weaker is} 39. Bxb6 Bxc3 40. cxb5 h5 $16) 39... Re6 {[%emt 0:01:15]} 40. cxb5 {[%emt 0:00:12][%cal Bc4b5,Bb5b6,Bb6b7][%mdl 32] Hoping for b6.} h5 {[%emt 0:00:28] [#]} 41. Rxe4 $3 {[%emt 0:15:29]} Kg7 {[%emt 0:15:19]} (41... Rxe4 42. Bd3) 42. Rxe6 {[%emt 0:00:11] White mates.} Qxe6 {[%emt 0:00:07]} 43. b6 {[%emt 0:00:08]} Be5 {[%emt 0:00:00]} 44. Qc4 {[%emt 0:00:00]} Qf6 {[%emt 0:00:00]} 45. b7 {[%emt 0:00:00]} Qf7 {[%emt 0:00:00]} 46. Bd4 {[%emt 0:00:00]} Qf4 {[%emt 0:00:00]} 47. Bxe5+ {[%emt 0:00:00] Weighted Error Value: White=0.12 (very precise) /Black=0.48} 1-0

[Event "GER-ch Youth-U16 2022"]
[Site "Willingen"]
[Date "2022.06.05"]
[Round "1.7"]
[White "Tovmasyan, Minas"]
[Black "Bakiev, Diyor"]
[Result "0-1"]
[ECO "A79"]
[WhiteElo "1933"]
[BlackElo "2157"]
[Annotator "TA"]
[PlyCount "118"]
[EventDate "2022.06.05"]
[EventType "swiss"]
[EventRounds "9"]
[EventCountry "GER"]
[SourceTitle "playchess.com"]
[Source "ChessBase"]
[SourceQuality "1"]
[TimeControl "40/4500+30:900+30"]

{[%evp 25,118,51,50,2,17,25,50,39,60,38,37,41,20,10,20,-12,75,83,111,101,221,212,227,229,222,159,197,65,64,0,73,63,74,39,116,102,98,71,79,81,91,98,95,23,25,12,40,23,77,0,0,0,0,0,0,0,0,0,0,-83,-89,-118,-100,-164,-91,-270,-102,-100,0,0,0,0,39,-191,-53,-53,-46,-43,-12,-70,-87,-75,-75,-77,-84,-136,275,-181,-28,-35,59,-6143,-6143,-5114,-5065]} 1. d4 {[%emt 0:00:00]} Nf6 {[%emt 0:00:00]} 2. c4 {[%emt 0:00:00]} c5 {[%emt 0:00:00]} 3. d5 {[%emt 0:00:00]} e6 {[%emt 0:00:00]} 4. Nc3 {[%emt 0:00:00]} exd5 {[%emt 0:00:00]} 5. cxd5 {[%emt 0:00:00]} d6 {[%emt 0:00:00]} 6. Nf3 {[%emt 0:00:00]} g6 {[%emt 0:00:00]} 7. Nd2 {[%emt 0:00:00]} Bg7 {[%emt 0:00:00]} 8. e4 {[%emt 0:00:00]} O-O {[%emt 0:00:00]} 9. Be2 {[%emt 0:00:00]} Re8 {[%emt 0:00:00]} 10. O-O {[%emt 0:00:00]} Na6 {[%emt 0:00:00]} 11. f3 {[%emt 0:00:00]} Nc7 {[%emt 0:00:00]} 12. a4 {[%emt 0:00:00]} b6 {[%emt 0:00:00]} 13. Nc4 {[%emt 0:00:00]} Ba6 {[%emt 0:00:00]} 14. Bf4 {[%emt 0:00:00] A79: Modern Benoni: Classical: 9...Re8 10 Nd2 Na6 11 f3.} (14. Bg5 $14 {deserves consideration.}) 14... Bxc4 {[%emt 0:00:00]} (14... Nh5 $5 {[%cal Rh5f4]} 15. Be3 f5 $11) 15. Bxc4 {[%emt 0:00:00]} a6 {[%emt 0:00:00]} 16. Qd2 {[%emt 0:15:22] White is slightly better.} Qd7 {[%emt 0:05:58] [#]} 17. Rfe1 $146 {[%emt 0:15:42]} ({Predecessor:} 17. Qd3 Nh5 18. Bd2 Bd4+ 19. Kh1 Qe7 20. Rae1 Qh4 21. f4 Bf2 22. Rxf2 Qxf2 23. g3 Nf6 24. h3 Nh5 25. Rg1 b5 {0-1 (25) Jean,O-Schacht,H (2220) Hamburg 1982}) 17... b5 {[%emt 0:04:15]} 18. Bf1 {[%emt 0:00:55]} b4 {[%emt 0:06:03]} 19. Nd1 {[%emt 0:09:03][%cal Bc3d1,Bd1e3,Be3c4][%mdl 32]} Nh5 {[%emt 0:20:13]} 20. Be3 {[%emt 0:02:05]} Qe7 {[%emt 0:07:36]} (20... f5 $11) 21. Bf2 $16 {[%emt 0:20:45]} Qf6 {[%emt 0:11:52]} 22. Rb1 {[%emt 0:02:02]} b3 {[%emt 0:07:09]} (22... Rad8 $16) 23. Ne3 $1 $18 {[%emt 0:04:25]} Rab8 {[%emt 0:01:39]} 24. Nc4 {[%emt 0:10:41]} Rb4 {[%emt 0:07:13]} 25. Be3 {[%emt 0:05:30][%cal Oe4e5]} Rxa4 {[%emt 0:05:32]} 26. Bg5 {[%emt 0:01:24]} (26. e5 $1 $18 {[%cal Re5f6]} Rxe5 27. Nxe5 Qxe5 28. Bxc5 $1 {[%mdl 512]}) 26... Qd4+ $14 {[%emt 0:00:45]} 27. Be3 {[%emt 0:00:01]} (27. Qxd4 $1 $14 Bxd4+ 28. Kh1) 27... Qxd2 {[%emt 0:01:00]} (27... Qf6 $1 $11) 28. Bxd2 $16 {[%emt 0:00:02]} Bd4+ {[%emt 0:01:16]} 29. Be3 {[%emt 0:00:44]} Rd8 {[%emt 0:06:54]} (29... Bxe3+ $1 $14 30. Rxe3 Nb5) 30. Bxd4 {[%emt 0:01:01]} cxd4 {[%emt 0:00:01]} 31. Ra1 {[%emt 0:00:08]} Rxa1 {[%emt 0:01:21]} 32. Rxa1 {[%emt 0:00:01]} f5 {[%emt 0:01:58]} 33. exf5 {[%emt 0:00:57]} gxf5 {[%emt 0:00:22]} 34. Bd3 {[%emt 0:00:40]} ({White should play} 34. Na5 $16) 34... Nxd5 $11 {[%emt 0:00:42]} 35. Bxf5 {[%emt 0:00:29] Be6+ is the strong threat.} Nb4 {[%emt 0:00:28]} 36. Ra4 {[%emt 0:00:36]} d5 {[%emt 0:00:37]} (36... Rb8 $11) 37. Nd2 {[%emt 0:00:24]} (37. Rxb4 $16 dxc4 38. Rxc4) 37... Rb8 $1 {[%emt 0:00:32]} (37... Ng7 38. Bxh7+ (38. Rxb4 Nxf5 39. Rxb3 a5 $11) 38... Kxh7 39. Rxb4 $16) 38. Nxb3 {[%emt 0:00:37]} d3 {[%emt 0:00:17]} 39. Nd2 {[%emt 0:00:43]} Ng7 {[%emt 0:00:23]} 40. Bd7 {[%emt 0:00:41]} Nc2 {[%emt 0:00:52]} 41. b3 {[%emt 0:00:00]} Nb4 {[%emt 0:00:00]} 42. g4 {[%emt 0:00:00]} (42. Kf2 $11 {keeps the balance.}) 42... Kf7 $17 {[%emt 0:00:00]} 43. Kf2 {[%emt 0:00:00]} Ke7 {[%emt 0:00:49]} 44. Bc8 {[%emt 0:00:00]} (44. Bf5 $17 {was worth a try.} Nxf5 45. gxf5) 44... Kd6 {[%emt 0:03:24]} (44... a5 $1 $19 45. Bf5 Nxf5 46. gxf5 Re8 47. Rxa5 Kd6) 45. g5 $2 {[%emt 0:06:01]} Kc5 $2 {[%emt 0:01:16]} (45... Rxc8 $19 {has better winning chances.} 46. Rxb4 Re8) 46. Bg4 {[%emt 0:08:18]} Re8 {[%emt 0:06:42]} (46... Ne8 $1 $17) 47. f4 $11 {[%emt 0:01:20]} Ne6 {[%emt 0:01:38]} 48. Kg3 {[%emt 0:03:12]} Nd4 {[%emt 0:01:05]} 49. Ra1 $2 {[%emt 0:00:35]} (49. f5 $14 {keeps the upper hand.}) 49... Nbc2 {[%emt 0:01:11]} (49... Ne2+ $19 50. Kf3 Nc3) 50. Ra5+ $1 $15 {[%emt 0:00:34]} (50. Rxa6 Re2 $1 {[%mdl 512]} 51. Ra5+ Kb4 52. Ra4+ Kc3 $17) 50... Kb4 {[%emt 0:00:52]} 51. Rxd5 {[%emt 0:00:25]} Kc3 {[%emt 0:00:13]} 52. Nf1 {[%emt 0:00:29]} (52. Nb1+ $11 Kxb3 53. f5) 52... Ne2+ {[%emt 0:01:39][%mdl 64] Deflection. Pair of Knights!} (52... Nxb3 53. Rd7 $11) 53. Kf2 {[%emt 0:00:37]} Nxf4 {[%emt 0:00:22]} 54. Rc5+ {[%emt 0:00:13]} Kb2 {[%cal Oe8e2] 0x0.000bd5f56fd8dp-1022s more active pieces.} 55. Bf5 {[%emt 0:00:04]} ({White should try} 55. h4) 55... Kc1 $2 {[%emt 0:02:09][%mdl 8192] [#]} (55... Kxb3 $6 56. Nd2+ Kb2 57. Nc4+ Kc3 58. Nd6+ Kb4 59. Rc4+ Kb3 60. Rxf4 $11) (55... Rf8 $17 {stays on course. Threatens to win with ...Ne6.} 56. Bxh7 Nd4) 56. Kf3 $4 {[%emt 0:01:01][%mdl 8192] [#]} (56. Bxh7 Ne6 57. Rc6 Rf8+ 58. Kg2 Nf4+ 59. Kf3 Ne6+ 60. Kg3 Nxg5 61. Bxd3 Rf3+ 62. Kh4 Rxd3 $14) (56. Rc4 $1 $18 {[%cal Rc4f4] is the narrow road to win.}) 56... Re1 $2 {[%emt 0:00:51]} ({Better is} 56... Ne6 $1 $19 {[%cal Re6c5]} 57. Bxe6 Rxe6) 57. Kf2 $1 $11 {[%emt 0:00:27] Hoping for Rc4.} Kd1 {[%emt 0:00:40]} (57... Kb2 $15) 58. Rxc2 $2 {[%emt 0:00:27][%mdl 8192]} Rxf1+ $19 {[%emt 0:00:19]} ({Stronger than} 58... dxc2 59. Bxc2+ Kxc2 60. Kxe1 $17) 59. Kxf1 {[%emt 0:00:29]} dxc2 {[%emt 0:00:04] A wild game.  Weighted Error Value: White=0.53/Black=0.53} 0-1

[Event "GER-ch Youth-U16 2022"]
[Site "Willingen"]
[Date "2022.06.05"]
[Round "1.8"]
[White "Trushko, Andrii"]
[Black "Guo, Philipp Ziming"]
[Result "1-0"]
[ECO "A45"]
[WhiteElo "1897"]
[BlackElo "1825"]
[Annotator "NA RC COMBH"]
[PlyCount "65"]
[EventDate "2022.06.05"]
[EventType "swiss"]
[EventRounds "9"]
[EventCountry "GER"]
[SourceTitle "playchess.com"]
[Source "ChessBase"]
[SourceQuality "1"]
[TimeControl "40/4500+30:900+30"]

1. d4 {[%emt 0:00:00]} Nf6 {[%emt 0:00:00]} 2. Bg5 {[%emt 0:00:00]} d5 {[%emt 0:00:00]} 3. e3 {[%emt 0:00:00]} c5 {[%emt 0:00:00]} 4. Bxf6 {[%emt 0:00:00]} gxf6 {[%emt 0:00:00]} 5. dxc5 {[%emt 0:00:00]} Nc6 {[%emt 0:00:00]} 6. a3 {[%emt 0:03:55]} a5 {[%emt 0:00:00]} 7. Bb5 {[%emt 0:04:07]} e6 $1 {[%emt 0:00:00]} 8. c4 {[%emt 0:05:00]} dxc4 {[%emt 0:06:39]} 9. Qa4 {[%emt 0:06:44]} Bd7 {[%emt 0:13:50]} 10. Nc3 {[%emt 0:04:07]} Bxc5 {[%emt 0:06:15]} 11. O-O-O {[%emt 0:00:53]} Qc7 {[%emt 0:02:10]} 12. Qxc4 {[%emt 0:07:24]} Ne5 {[%emt 0:10:14]} 13. Bxd7+ {[%emt 0:06:50]} Nxd7 {[%emt 0:00:21]} 14. Kb1 {[%emt 0:00:19]} Ne5 {[%emt 0:12:30]} 15. Qf4 {[%emt 0:01:53]} Be7 {[%emt 0:05:22]} 16. Nf3 {[%emt 0:01:44]} Rc8 {[%emt 0:01:14]} 17. Nxe5 {[%emt 0:06:39]} Qxe5 {[%emt 0:01:07]} 18. Qa4+ $14 {[%emt 0:00:42]} Rc6 {[%emt 0:00:41]} 19. Nb5 {[%emt 0:09:38]} O-O {[%emt 0:02:18]} 20. Rd7 {[%emt 0:02:10]} Rb6 {[%emt 0:02:21]} 21. Qg4+ {[%emt 0:00:11]} Kh8 {[%emt 0:01:29]} 22. a4 {[%emt 0:00:17]} f5 {[%emt 0:01:59]} 23. Qd4 {[%emt 0:01:29]} Bf6 {[%emt 0:03:03]} 24. Qxe5 {[%emt 0:00:26]} Bxe5 {[%emt 0:00:08]} 25. f4 {[%emt 0:00:04]} Bf6 {[%emt 0:03:28]} 26. Rc1 {[%emt 0:00:39]} e5 {[%emt 0:04:24]} 27. Rcc7 {[%emt 0:06:30]} exf4 {[%emt 0:03:03]} 28. exf4 {[%emt 0:00:01]} Kg8 {[%emt 0:02:03]} 29. Rxb7 {[%emt 0:01:17]} Re6 {[%emt 0:00:29]} 30. Nd6 {[%emt 0:00:34]} Re1+ {[%emt 0:01:17]} 31. Ka2 {[%emt 0:00:09]} Re2 {[%emt 0:00:22]} 32. Nxf7 {[%emt 0:00:22]} Rxg2 {[%emt 0:00:50]} 33. Nh6+ {[%emt 0:00:06]} 1-0

[Event "GER-ch Youth-U16 2022"]
[Site "Willingen"]
[Date "2022.06.05"]
[Round "1.9"]
[White "Kort, Felix"]
[Black "Foerster-Yialamas, Lucas"]
[Result "0-1"]
[ECO "A50"]
[WhiteElo "1894"]
[BlackElo "2117"]
[Annotator "TA"]
[PlyCount "62"]
[EventDate "2022.06.05"]
[EventType "swiss"]
[EventRounds "9"]
[EventCountry "GER"]
[SourceTitle "playchess.com"]
[Source "ChessBase"]
[SourceQuality "1"]
[TimeControl "40/4500+30:900+30"]

{[%evp 9,61,24,8,22,21,20,17,8,7,16,5,20,13,12,3,0,16,17,31,-2,-8,-66,-57,-104,-107,-112,-80,-168,-168,-157,-166,-154,-170,-159,-160,-164,-161,-165,0,-808,-799,-801,-801,-29990,-29991,-29996,-29997,-29997,-29998,-29999,-29997,-29998,-29999,-29999]} 1. d4 {[%emt 0:00:00]} Nf6 {[%emt 0:00:00]} 2. c4 {[%emt 0:00:00]} g6 {[%emt 0:00:00]} 3. f3 {[%emt 0:00:00]} e6 {[%emt 0:00:00]} 4. e4 {[%emt 0:00:00]} d5 {[%emt 0:00:00]} 5. Nc3 {[%emt 0:00:00]} dxe4 {[%emt 0:00:00]} 6. fxe4 {[%emt 0:00:00] E60: King's Indian: Unusual lines and Fianchetto Variation without Nc3.} c5 {[%emt 0:00:00]} 7. d5 {[%emt 0:00:00]} Bg7 {[%emt 0:00:00]} 8. Nf3 {[%emt 0:02:27] The position is equal.} O-O {[%emt 0:03:51][%cal Ob7b5]} 9. Be2 {[%emt 0:10:30]} exd5 {[%emt 0:00:25]} 10. exd5 {[%emt 0:01:03]} Bg4 {[%emt 0:00:19]} 11. O-O {[%emt 0:01:43]} Nbd7 {[%emt 0:00:31][%cal Bb8d7,Bd7e5,Be5d3][%mdl 32]} 12. Bg5 {[%emt 0:06:56] [#]} Qb6 $146 {[%emt 0:02:19]} ({Predecessor:} 12... h6 13. Bh4 g5 14. Bg3 Re8 15. h3 Bh5 16. Qb3 g4 17. Nd2 gxh3 18. Bxh5 Nxh5 {½-½ (44) Nizamov,B (2055)-Ovchinnikov,V (2248) Kazan 2015}) 13. Qd2 {[%emt 0:08:40]} Rfe8 {[%emt 0:05:25][%cal Oh7h6]} 14. Bd3 {[%emt 0:09:35]} Bxf3 {[%emt 0:07:37]} 15. Rxf3 {[%emt 0:05:13]} (15. gxf3 $11 Nh5 16. Kh1) 15... Ne5 {[%emt 0:03:09]} 16. Rh3 {[%emt 0:08:16]} (16. Rg3 $15 {was preferrable.}) 16... Nxd3 $17 {[%emt 0:14:33]} 17. Rxd3 {[%emt 0:13:17]} Ng4 {[%emt 0:00:42] Threatens to win with ...Bd4+.} 18. Rf1 {[%emt 0:10:47]} (18. Kh1 $17) 18... Ne5 $1 $19 {[%emt 0:18:37][%csl LRc4,LRd3]} (18... Qd6 $6 19. Bf4 Qd7 20. b3 $11) 19. Rh3 {[%emt 0:00:28]} Nxc4 {[%emt 0:02:54]} ({Don't play} 19... f6 20. Bh6 Nxc4 21. Qf4 Bxh6 22. Qxh6 $14) 20. Qf4 {[%emt 0:00:07]} Bd4+ {[%emt 0:00:52]} 21. Kh1 {[%emt 0:00:08]} f5 {[%emt 0:01:03]} 22. Qh4 {[%emt 0:04:29]} h5 {[%emt 0:00:52] Active counter play!} 23. Be7 {[%emt 0:01:42] [#]} Ne3 $2 {[%emt 0:12:06]} ({Inferior is} 23... Qxb2 24. d6 $11) ({Black should play} 23... Qa6 $1 $19 24. Qg5 Bxc3 25. Rxc3 {[#]} Nd2 $1 {[%mdl 512]}) 24. d6 $2 {[%emt 0:01:25][%mdl 8192]} Nxf1 {[%emt 0:03:29]} 25. Qg5 {[%emt 0:00:00]} Kf7 {[%emt 0:02:57]} 26. Nd5 {[%emt 0:00:59]} Qxb2 {[%emt 0:00:30] Black mates.} 27. d7 {[%emt 0:00:30] [#]} Ng3+ $1 {[%emt 0:00:17]} 28. hxg3 {[%emt 0:00:21]} Qb1+ {[%emt 0:00:09]} 29. Kh2 {[%emt 0:00:02]} Bg1+ {[%emt 0:00:37]} 30. Kh1 {[%emt 0:00:06]} Be3+ {[%emt 0:00:06]} 31. Kh2 {[%emt 0:00:10]} Qg1# {[%emt 0:00:11] Weighted Error Value: White=0.64/Black=0.09 (flawless)} 0-1

[Event "GER-ch Youth-U16 2022"]
[Site "Willingen"]
[Date "2022.06.05"]
[Round "1.10"]
[White "Bui, Bao Anh Le"]
[Black "Hecht, Jonas Christian"]
[Result "1-0"]
[ECO "B47"]
[WhiteElo "2127"]
[BlackElo "1884"]
[Annotator "TA"]
[PlyCount "69"]
[EventDate "2022.06.05"]
[EventType "swiss"]
[EventRounds "9"]
[EventCountry "GER"]
[SourceTitle "playchess.com"]
[Source "ChessBase"]
[SourceQuality "1"]
[TimeControl "40/4500+30:900+30"]

{[%evp 9,69,26,41,18,37,33,34,44,48,39,62,34,86,88,90,85,88,79,88,60,88,81,80,64,96,108,93,87,118,85,79,51,51,51,50,52,110,120,165,152,176,171,239,187,299,286,291,254,312,324,394,386,666,661,556,590,29985,29986,29961,6157,29982,29983]} 1. e4 {[%emt 0:00:00]} c5 {[%emt 0:00:00]} 2. Nf3 {[%emt 0:00:00]} e6 {[%emt 0:00:00]} 3. d4 {[%emt 0:00:00]} cxd4 {[%emt 0:00:00]} 4. Nxd4 {[%emt 0:00:00]} Nc6 {[%emt 0:00:00]} 5. Nc3 {[%emt 0:00:00]} Qc7 {[%emt 0:00:00]} 6. Qd3 {[%emt 0:00:00] B47: Sicilian: Taimanov: 5 Nc3 Qc7 6 f4, 6 g3 and 6 Be2.} a6 {[%emt 0:00:00]} 7. Nxc6 {[%emt 0:00:00]} bxc6 {[%emt 0:00:00]} 8. Qg3 {[%emt 0:00:00] White is slightly better.} Qxg3 {[%emt 0:00:00]} 9. hxg3 {[%emt 0:00:00]} (9. fxg3 d5 $11) 9... e5 {[%emt 0:01:03] Inhibits Bf4.} 10. f4 {[%emt 0:20:21] [#]} Bb4 $146 {[%emt 0:05:03]} (10... Bd6 $14) ({Predecessor:} 10... d6 11. b3 Nf6 12. Ba3 Bb7 13. O-O-O Rd8 14. Be2 Be7 15. Bf3 c5 16. Rhe1 O-O {1-0 (71) Priyadharshan,K (2407)-Charbonneau,P (2517) Saint Louis 2012}) 11. fxe5 $16 {[%emt 0:07:33]} Ne7 {[%emt 0:03:32]} 12. Bd2 {[%emt 0:01:40]} Ng6 {[%emt 0:03:17]} 13. Rh5 {[%emt 0:02:51]} O-O {[%emt 0:20:49]} 14. a3 {[%emt 0:22:13]} Be7 {[%emt 0:08:10]} 15. Bf4 {[%emt 0:07:05]} Bd8 {[%emt 0:14:21]} 16. Bc4 {[%emt 0:03:11]} Bb6 {[%emt 0:02:22]} 17. Na4 {[%emt 0:03:28]} Ba7 {[%emt 0:02:59]} 18. Kd2 {[%emt 0:04:52] White is more active.} Bb7 {[%emt 0:07:10]} 19. Ke2 {[%emt 0:00:52]} Rae8 {[%emt 0:02:54]} 20. Rah1 {[%emt 0:02:01]} h6 {[%emt 0:01:25]} 21. Rd1 $36 {[%emt 0:02:33][%mdl 2048] Inhibits d5. White is pushing.} Bc8 {[%emt 0:01:00][%cal Od7d5] And now ...d5! would win.} 22. Rd6 {[%emt 0:01:42] Prevents d5.} Nxf4+ {[%emt 0:01:25]} (22... Kh7 $14) 23. gxf4 {[%emt 0:00:06]} Bb8 {[%emt 0:00:06] [#]} 24. Nc5 $1 {[%emt 0:00:06][%csl LRa6,LRd7]} Bxd6 {[%emt 0:01:05]} 25. exd6 {[%emt 0:00:05]} g5 {[%emt 0:03:21]} (25... Kh7 {might work better.} 26. b4 g5) 26. g3 {[%emt 0:01:13][%cal Bg2g3,Bg3f4][%mdl 32]} (26. Rxh6 gxf4 27. Rh5 Kg7 $16) ({Weaker is} 26. fxg5 Re5 27. b4 (27. Nxa6 Rxe4+ 28. Kd3 Rxc4 $17) 27... Rxg5 28. Rxg5+ (28. Rxh6 Rxg2+ 29. Kd3 Rg3+ 30. Kd4 Rxa3 $11) 28... hxg5 $14) 26... gxf4 {[%emt 0:01:42]} (26... Kh7 $142 27. e5 (27. fxg5 Kg6 $14) 27... Kg7) 27. gxf4 $18 {[%emt 0:00:04]} Kg7 {[%emt 0:00:15]} 28. Kf3 {[%emt 0:00:23]} Kg6 {[%emt 0:01:24]} 29. Rh1 {[%emt 0:00:37]} Kg7 {[%emt 0:01:44]} 30. e5 {[%emt 0:02:43][%cal Be4e5,Be5f6,Bf6f7][%mdl 32]} Kg6 $2 {[%emt 0:03:24]} (30... f5 31. e6 dxe6) 31. Rg1+ {[%emt 0:01:13]} Kh7 {[%emt 0:00:09]} 32. Ne4 {[%emt 0:00:56]} f6 {[%emt 0:00:56]} 33. Nxf6+ {[%emt 0:00:14]} Rxf6 {[%emt 0:00:09]} 34. exf6 {[%emt 0:00:04] [#] White threatens Rg7+ and mate.} Rf8 {[%emt 0:00:12]} 35. f7 {[%emt 0:00:14] Weighted Error Value: White=0.08 (flawless) /Black=0.82} 1-0

[Event "GER-ch Youth-U16 2022"]
[Site "Willingen"]
[Date "2022.06.05"]
[Round "1.11"]
[White "Neuber, Pascal"]
[Black "Jaskulski, Jan"]
[Result "0-1"]
[ECO "B20"]
[WhiteElo "1802"]
[BlackElo "1727"]
[Annotator "NA RC COMBH"]
[PlyCount "37"]
[EventDate "2022.06.05"]
[EventType "swiss"]
[EventRounds "9"]
[EventCountry "GER"]
[SourceTitle "playchess.com"]
[Source "ChessBase"]
[SourceQuality "1"]
[TimeControl "40/4500+30:900+30"]

1. e4 {[%emt 0:00:00]} c5 {[%emt 0:00:00]} 2. c4 {[%emt 0:00:00]} Nc6 {[%emt 0:00:00]} 3. Nc3 {[%emt 0:00:00]} g6 {[%emt 0:00:00]} 4. g3 {[%emt 0:00:00]} Bg7 {[%emt 0:00:00]} 5. Bg2 $11 {[%emt 0:00:00]} e6 {[%emt 0:00:00]} 6. Nge2 {[%emt 0:00:00]} Nge7 {[%emt 0:00:00]} 7. O-O {[%emt 0:00:00]} O-O {[%emt 0:00:00]} 8. d3 {[%emt 0:00:00]} b6 {[%emt 0:00:00]} 9. f4 {[%emt 0:00:00]} Bb7 {[%emt 0:00:00]} 10. Be3 {[%emt 0:02:04]} d5 {[%emt 0:14:04]} 11. cxd5 {[%emt 0:26:50]} exd5 {[%emt 0:00:10]} 12. exd5 {[%emt 0:08:08]} Nb4 {[%emt 0:01:11]} 13. d6 {[%emt 0:07:21]} Bxg2 14. dxe7 {[%emt 0:08:29]} Qxe7 {[%emt 0:01:19]} 15. Kxg2 {[%emt 0:00:20]} Qxe3 {[%emt 0:00:11]} 16. Rf3 {[%emt 0:00:09]} Qe6 {[%emt 0:15:37]} 17. a3 {[%emt 0:10:11]} Nd5 {[%emt 0:01:08]} 18. Nxd5 {[%emt 0:00:19]} Qxd5 {[%emt 0:00:09]} 19. Nc3 {[%emt 0:00:35]} 0-1